Cogmind - Beta 13 @@@ ROGUE MODE // 2024.06.26 @ 21:20:01 Player: ZergFTW Result: Self-destructed Performance ------------- Evolutions (1) 500 Regions Visited (4) 800 Robots Destroyed (33) 165 Value Destroyed (446) 446 Prototype IDs (0) 0 Alien Tech Used (0) 0 Bonus (0) 0 TOTAL SCORE: 1911 Bonus ------- None Cogmind --------- Core Integrity 292/400 Matter 24/300 Energy 99/100 System Corruption 0% Temperature Cool (9) Movement Treading (240) Ox1 Location -9/Storage Parts ------- > --- POWER (1) -------- (None) > --- PROPULSION (2) --- Light Treads > --- UTILITY (4) ------ Large Storage Unit Structural Scanner Visual Processing Unit Seismic Detector > --- WEAPON (2) ------- (None) > --- INVENTORY (15) --- Ion Engine Ion Engine Light Nuclear Core Light Treads Light Treads Compact Wheel Sensor Array Signal Interpreter Thief Drone Bay Light Assault Rifle Light Assault Rifle Light Cannon Light Cannon Datajack Peak State ------------ > --- POWER ------------ Ion Engine > --- PROPULSION ------- Light Treads Light Treads > --- UTILITY ---------- Large Storage Unit Structural Scanner Visual Processing Unit Seismic Detector > --- WEAPON ----------- Light Assault Rifle Light Assault Rifle > --- INVENTORY -------- Ion Engine Ion Engine Light Nuclear Core Light Treads Light Treads Compact Wheel Signal Interpreter Thief Drone Bay Light Cannon Light Cannon Grenade Launcher Datajack Mining Laser [Rating: 12] Favorites ----------- Power Ion Engine Engine Ion Engine Propulsion Light Treads Treads Light Treads Utility Seismic Detector Device Seismic Detector Storage Large Storage Unit Processor Visual Processing Unit Weapon Light Assault Rifle Energy Gun EM Pulse Gun Ballistic Gun Light Assault Rifle Ballistic Cannon Light Cannon Launcher Grenade Launcher Special Weapon Mining Laser Build | -11 -10 -10 -9 -9 ------- Run | Yrd Mat Min Mat Sto Slots Evolved 2 | . . . 2 . Power . | . . . . . Propulsion . | . . . . . Utility 2 | . . . 2 . Weapon . | . . . . . Parts Attached 26 | 6 9 6 5 . Power 2 | . 2 . . . Engine 2 | . 2 . . . Core . | . . . . . Reactor . | . . . . . Propulsion 4 | 2 1 1 . . Treads 4 | 2 1 1 . . Leg . | . . . . . Wheel . | . . . . . Hover . | . . . . . Flight . | . . . . . Utility 8 | 2 3 . 3 . Device 4 | 1 1 . 2 . Storage 3 | 1 2 . . . Processor 1 | . . . 1 . Hackware . | . . . . . Protection . | . . . . . Artifact . | . . . . . Weapon 12 | 2 3 5 2 . Energy Gun 1 | 1 . . . . Energy Cannon . | . . . . . Ballistic Gun 4 | 1 . 3 . . Ballistic Cannon 3 | . 1 2 . . Launcher 2 | . 1 . 1 . Special Weapon 2 | . 1 . 1 . Impact Weapon . | . . . . . Slashing Weapon . | . . . . . Piercing Weapon . | . . . . . Special Melee Weapon . | . . . . . Unidentified Prototypes . | . . . . . Parts Lost 5 | . 1 . . 4 Power 1 | . . . . 1 Propulsion 1 | . . . . 1 Utility . | . . . . . Weapon 3 | . 1 . . 2 Highest Loss Streak 3 | . 1 . . 3 To Critical Strikes . | . . . . . Average Slot Usage (%) 95 | . 91 100 97 90 Engine 11 | . 9 14 11 9 Treads 25 | . 25 28 22 22 Device 14 | . 14 14 19 22 Storage 13 | . 14 14 11 11 Processor 1 | . . . 11 11 Energy Gun 2 | . 5 . . . Ballistic Gun 14 | . 8 23 10 . Ballistic Cannon 4 | . 5 4 . . Launcher 3 | . 5 . 6 9 Special Weapon 1 | . 2 . 4 4 Naked Turns . | . . . . . Heaviest Build 32 | 9 32 32 31 31 Greatest Support 40 | 40 40 40 40 40 Greatest Overweight (x) 1 | 1 1 . . . Average Overweight (x) . | . . . . . Largest Inventory Capacity 15 | 8 15 15 15 15 Average Capacity 14 | 7 13 15 15 15 Most Carried 15 | 7 15 15 14 14 Average Carried 12 | 5 11 13 13 14 Final Capacity 15 | 8 15 15 15 15 Final Carried 15 | 6 14 15 14 14 Class Distribution -------------------- 89% | Mutant 10% | Scavenger-Mutant Dominant Class ---------------- Mutant | -10/Materials Mutant | -10/Mines Scavenger-Mutant | -9/Materials Scavenger-Mutant | -9/Storage Resources | -11 -10 -10 -9 -9 ----------- Run | Yrd Mat Min Mat Sto Matter Collected 611 | 273 250 67 12 9 Remotely . | . . . . . Salvage Created 790 | 176 501 37 41 35 Parts 71 | 6 47 7 9 2 Haulers Intercepted 1 | . 1 . . . Recyclers Shooed 3 | . 1 2 . . Parts Field Recycled . | . . . . . Retrieved Matter . | . . . . . Parts Self-Destructed . | . . . . . Prevented . | . . . . . Kills | -11 -10 -10 -9 -9 ------- Run | Yrd Mat Min Mat Sto Combat Hostiles Destroyed 15 | . 9 . 4 2 Guns 4 | . 3 . 1 . Cannons 4 | . 4 . . . AOE 7 | . 2 . 3 2 Classes Destroyed 10 | 3 5 1 . 1 Worker 5 | 2 2 1 . . Builder 1 | . . 1 . . Tunneler 3 | 2 . 1 . . Hauler 1 | . 1 . . . Recycler 3 | 1 2 . . . Operator 1 | . 1 . . . Watcher 4 | . 3 . 1 . Swarmer 10 | . 6 . 4 . Grunt 3 | . 3 . . . Sentry 2 | . . . . 2 Best Kill Streak 5 | 2 5 2 5 2 Combat Bots Only 4 | . 3 . 4 2 Max Kills in Single Turn 2 | 1 2 1 2 1 Gunslinging . | . . . . . Exploded 2 | . 1 . 2 1 Melee . | . . . . . Uniques/NPCs Destroyed . | . . . . . Combat | -11 -10 -10 -9 -9 -------- Run | Yrd Mat Min Mat Sto Hostile Shots Fired 95 | . 49 . 14 32 Missed 23 | . 10 . 3 10 Damage Taken 1042 | . 572 . 146 324 Core 237 | . 129 . 59 49 Absorbed by Shields . | . . . . . Regen/Repaired (Parts) 138 | . 126 . 12 . Core Remaining (%) 74 | 100 . 48 . . Volleys Fired 117 | 13 51 22 16 15 Largest 2 | 2 2 2 2 1 Hottest 100 | 60 100 100 100 30 Shots Fired 201 | 26 97 43 20 15 Gun 138 | 26 70 34 8 . Cannon 32 | . 24 8 . . Launcher 22 | . 2 . 5 15 Special 9 | . 1 1 7 . Kinetic 131 | 13 68 42 8 . Thermal 9 | . 1 1 7 . Explosive 22 | . 2 . 5 15 Electromagnetic 39 | 13 26 . . . Robot Hit Streak 9 | 6 9 7 6 9 Robot Miss Streak 5 | 1 5 4 2 . Penetration Max . | . . . . . Secondary Targets . | . . . . . Shots Hit Robots 101 | 16 44 27 5 9 Core Hits 53 | 7 27 7 7 5 Critical Kills . | . . . . . Critical Parts Destroyed . | . . . . . Critical Strikes . | . . . . . Melee Attacks . | . . . . . Impact . | . . . . . Slashing . | . . . . . Piercing . | . . . . . Sneak Attacks . | . . . . . Combat Hostiles . | . . . . . Follow-up Attacks . | . . . . . Damage Inflicted 1656 | 200 770 244 238 204 Guns 746 | 180 343 193 30 . Cannons 260 | . 209 51 . . Explosions 650 | 20 218 . 208 204 Melee . | . . . . . Ramming . | . . . . . Kinetic 724 | 64 386 244 30 . Thermal 45 | 20 25 . . . Explosive 605 | . 193 . 208 204 Electromagnetic 282 | 116 166 . . . Impact . | . . . . . Slashing . | . . . . . Piercing . | . . . . . Highest Corruption . | . . . . . Average Corruption . | . . . . . Corruption Purged . | . . . . . Corruption Blocked . | . . . . . Overload Shots . | . . . . . Overflow Damage 8 | . 3 . 5 . Projectiles . | . . . . . Explosions 8 | . 3 . 5 . Melee . | . . . . . Knockbacks 3 | . . 3 . . Impact . | . . . . . Kinetic 3 | . . 3 . . Secondary . | . . . . . Self-Inflicted Damage 83 | . 15 . 68 . Shots 4 | . 1 . 3 . Rammed . | . . . . . Targets Rammed . | . . . . . Kicked . | . . . . . Crushed . | . . . . . Highest Temperature 46 | 20 46 20 32 19 Average Temperature 11 | 9 11 11 11 5 Received Heat Transfer 225 | . 108 . . 117 Siege Activations . | . . . . . Robots Corrupted . | . . . . . Combat Hostiles . | . . . . . Parts Fried 2 | 1 1 . . . Impact Corruptions . | . . . . . Robots Melted . | . . . . . Combat Hostiles . | . . . . . Parts Melted . | . . . . . Heat Transferred 100 | 50 50 . . . Parts Sabotaged . | . . . . . Parts Stolen . | . . . . . Parts Stripped . | . . . . . Power Chain Reactions 2 | 1 1 . . . Alert | -11 -10 -10 -9 -9 ------- Run | Yrd Mat Min Mat Sto Peak Influence 224 | 25 224 41 197 162 Initial 83 | . 16 30 1 83 Average 62 | 8 95 13 121 112 Maximum Alert Level 1 | . 1 . . . Low Security (%) 95 | 100 89 100 100 100 Level 1 4 | . 10 . . . Level 2 . | . . . . . Level 3 . | . . . . . Level 4 . | . . . . . Level 5 . | . . . . . High Security . | . . . . . Max Security . | . . . . . Squads Dispatched 5 | . 2 . . 3 Investigation 2 | . 2 . . . Extermination . | . . . . . Reinforcement . | . . . . . Assault . | . . . . . Garrison 3 | . . . . 3 Intercept . | . . . . . Searches Triggered . | . . . . . Construction Impeded . | . . . . . Haulers Reinforced . | . . . . . Active Scanning Responses . | . . . . . Cargo Convoy Interrupts . | . . . . . Stealth | -11 -10 -10 -9 -9 --------- Run | Yrd Mat Min Mat Sto Distress Signals 1 | . 1 . . . Communications Jammed . | . . . . . Distress Signals . | . . . . . Times Spotted 26 | . 14 . 8 4 Peak Tracking Total 4 | . 3 . 4 2 Tactical Retreats 1 | . . . 1 . Traps | -11 -10 -10 -9 -9 ------- Run | Yrd Mat Min Mat Sto Traps Triggered 2 | . 2 . . . Indirectly . | . . . . . Trap Hack Attempts . | . . . . . Triggered . | . . . . . Disarmed . | . . . . . Reprogrammed . | . . . . . Reused . | . . . . . Traps Extracted . | . . . . . Installed . | . . . . . Triggered . | . . . . . Machines | -11 -10 -10 -9 -9 ---------- Run | Yrd Mat Min Mat Sto Machines Disabled 1 | . . . 1 . Max in Single Turn 1 | . . . 1 . Machines Repaired . | . . . . . Machines Dismantled . | . . . . . Machines Sabotaged . | . . . . . Overloaded Fab Kills . | . . . . . Hacking | -11 -10 -10 -9 -9 --------- Run | Yrd Mat Min Mat Sto Machines Accessed 10 | . 5 2 2 1 Terminals 6 | . 4 1 1 . Fabricators . | . . . . . Repair Stations 2 | . 1 . 1 . Recycling Units . | . . . . . Scanalyzers . | . . . . . Garrison Access 1 | . . . . 1 Total Hacks 26 | . 14 5 5 2 Successful 8 | . 5 1 2 . Failed 18 | . 9 4 3 2 Catastrophic 4 | . 1 2 1 . Database Lockouts . | . . . . . Manual 11 | . 9 . 2 . Terminals 15 | . 9 4 2 . Fabricators . | . . . . . Repair Stations 8 | . 5 . 3 . Recycling Units . | . . . . . Scanalyzers . | . . . . . Garrison Access 2 | . . . . 2 Terminal Hacks 2 | . 1 1 . . Open Door 1 | . . 1 . . Terminal Index 1 | . 1 . . . Fabricator Hacks . | . . . . . Repair Station Hacks 6 | . 4 . 2 . Scan Component 3 | . 2 . 1 . Repair 3 | . 2 . 1 . Recycling Unit Hacks . | . . . . . Scanalyzer . | . . . . . Garrison Access Hacks . | . . . . . Unauthorized Hacks . | . . . . . Terminals . | . . . . . Fabricators . | . . . . . Repair Stations . | . . . . . Recycling Units . | . . . . . Scanalyzers . | . . . . . Garrison Access . | . . . . . Data Cores Recovered 1 | . 1 . . . Used . | . . . . . Hacking Detections 7 | . 4 1 1 1 Full Trace Events 2 | . 2 . . . Feedback Events . | . . . . . Feedback Blocked . | . . . . . Robot Schematics Acquired . | . . . . . Robots Built . | . . . . . Authchips . | . . . . . Time . | . . . . . Total Robot Build Rating . | . . . . . Part Schematics Acquired . | . . . . . Parts Built . | . . . . . Authchips . | . . . . . Time . | . . . . . Total Part Build Rating . | . . . . . Parts Repaired 3 | . 2 . 1 . Time 78 | . 52 . 26 . Parts Recycled . | . . . . . Recycled Matter . | . . . . . Retrieved Matter . | . . . . . Retrieved Components . | . . . . . Parts Scanalyzed . | . . . . . Part Schematics Acquired . | . . . . . Parts Damaged . | . . . . . Bothacking | -11 -10 -10 -9 -9 ------------ Run | Yrd Mat Min Mat Sto Used RIF Installer . | . . . . . Robots Hacked . | . . . . . Non-combat . | . . . . . Combat . | . . . . . Robot Hacks Applied . | . . . . . Relay Couplers Released . | . . . . . Fabnet Peak Effective % . | . . . . . Robots Rewired . | . . . . . Allies Hacked . | . . . . . Hacks Repelled . | . . . . . Allies | -11 -10 -10 -9 -9 -------- Run | Yrd Mat Min Mat Sto Total Allies . | . . . . . Largest Group . | . . . . . Highest-Rated Group . | . . . . . Highest-Rated Ally . | . . . . . Total Orders . | . . . . . Ally Attacks . | . . . . . Total Damage . | . . . . . Kills . | . . . . . Allies Corrupted . | . . . . . Allies Melted . | . . . . . Intel | -11 -10 -10 -9 -9 ------- Run | Yrd Mat Min Mat Sto Robot Analysis Total . | . . . . . Derelict Logs Recovered 2 | . . 2 . . Drone Launches . | . . . . . Drone Recoveries . | . . . . . Exploration | -11 -10 -10 -9 -9 ------------- Run | Yrd Mat Min Mat Sto Turns Passed 2481 | 154 1058 931 244 94 Spaces Moved 1222 | 77 469 535 101 40 Core 23 | 23 . . . . Treads 1199 | 54 469 535 101 40 Legs . | . . . . . Wheels . | . . . . . Hover . | . . . . . Flight . | . . . . . Fastest Speed 50 | 50 160 160 160 160 Average Speed 162 | 131 169 160 160 160 Slowest Speed 240 | 160 240 160 160 160 Overloaded Moves . | . . . . . Propulsion Burnouts . | . . . . . Robots Hopped . | . . . . . Cave-ins Triggered . | . . . . . Exploration Rate (%) 34 | 6 49 97 15 7 Regions Visited 4 Branch Regions 2 Pre-discovered Areas . | . . . . . Known Exits Taken 1 | . . . 1 . Unknown Exits Taken 3 | 1 1 1 . . Scrap Searched 1 | . . 1 . . Spaces Dug 14 | . 1 . 13 . Terrain Destroyed 79 | 5 19 1 42 12 Melee . | . . . . . Projectile 9 | . 1 1 7 . AOE 70 | 5 18 . 35 12 Terrain Rammed . | . . . . . Walls Destroyed . | . . . . . Machines Disabled . | . . . . . Actions | -11 -10 -10 -9 -9 --------- Run | Yrd Mat Min Mat Sto Total 1524 | 106 643 570 150 55 Wait 119 | . 88 4 27 . Move 1218 | 76 468 534 100 40 Hop . | . . . . . Pick Up 34 | 11 18 3 2 . Fast Attach 2 | 1 1 . . . Attach 13 | 5 4 1 3 . Detach . | . . . . . Swap 11 | . 4 5 2 . Drop 10 | . 9 1 . . Fire 117 | 13 51 22 16 15 Melee . | . . . . . Ram . | . . . . . Kick . | . . . . . Crush . | . . . . . Escape Stasis . | . . . . . Rewire . | . . . . . Trap . | . . . . . Miscellaneous . | . . . . . Route ------- -11/Scrapyard -10/Materials (discovered 2 exits: *Mat / *Min) -10/Mines (discovered 2 exits: *Mat x2) -9/Materials (discovered 2 exits: Mat / *Sto) -9/Storage History --------- Turn | Location | Event 7 | -11/Scrapyard | Discovered new exit (range 15) 155 | -11/Scrapyard | Entered Materials 311 | -10/Materials | Build established: Mutant 610 | -10/Materials | Discovered new exit (range 5) 747 | -10/Materials | Discovered new exit (range 7) 837 | -10/Materials | Core integrity fell below 50% 1015 | -10/Materials | Repaired Lgt. Cannon 1042 | -10/Materials | Repaired Lgt. Treads 1213 | -10/Materials | Entered Mines 1665 | -10/Mines | Learned Materials interactive machine intel 1665 | -10/Mines | Discovered new exit (range 10) 1777 | -10/Mines | Learned 8 Materials zone layouts 1791 | -10/Mines | Discovered new exit (range 9) 1804 | -10/Mines | Found the Drone Emporium 1811 | -10/Mines | Found Prototype Device 2144 | -10/Mines | Entered Materials 2144 | -9/Materials | Evolved 2 slots: Utility x2 2145 | -9/Materials | Identified exit to Storage 2145 | -9/Materials | Identified exit to Materials 2146 | -9/Materials | Loaded intel: 18 interactive machine locations 2208 | -9/Materials | Repaired Seismic Detector 2388 | -9/Materials | Entered Storage 2482 | -9/Storage | Self-destructed Last Messages --------------- 02417_ Y-45 Defender emerges from the garrison. 02419_ Critical hit (Burn: +37). 02425_ Mining Laser destroyed. 02432_ U-05 Engineer builds a Wall. 02434_ Y-45 Defender destroyed. 02437_ U-05 Engineer builds a Wall. 02441_ Y-45 Defender emerges from the garrison. 02442_ U-05 Engineer builds a Door. 02446_ U-05 Engineer builds a Wall. 02446_ Y-45 Defender destroyed. 02450_ U-05 Engineer builds a Door. 02455_ The unstable cave ceiling collapses. 02457_ Acquired 9 matter. 02459_ U-05 Engineer lays Concrete. 02461_ U-05 Engineer builds a Wall. 02465_ U-05 Engineer lays Concrete. 02466_ Y-45 Defender emerges from the garrison. 02473_ Ion Engine destroyed. 02479_ Grenade Launcher destroyed. 02482_ Lgt. Treads destroyed. Map ----- +----------------------------------------------------+ | ?????????????????????????????????????????????????? | | ?????????????????????????????????????????????????? | | ?????????????????????????????????????????????????? | | ?????????????????????????????????????????????????? | | ?????????????????????????????????????????????????? | | ?????????????????????????????????????????????????? | | ?????????????????????????????????????????????????? | | ?????????????????????????????????????????????????? | | ?????????????????????????????????????????????????? | | ?????????????????????????????????????????????????? | | ?????????????????????????????????????????????????? | | ?????????????????????????????????????????????????? | | ?????????????????????????????????????????????????? | | ?????????????????????????????????????????????????? | | ?????????????????????????????????????????????????? | | ?????????????????????????????????????????????????? | | ?????????????????????????????????????????????????? | | ?????????????????????????????????????????????????? | | ??????????????????????????????????????? ##???????? | | ??????????????????????????????????????? ##???????? | | ??????????????????????????????????????? ##???????? | | ?????????####### ?????????????????????? ##???????? | | ?????????####### ??#################### ##???????? | | ???????? ################### ##???????? | | ???????? ##???????? | | ?????????????## Y @ ##???????? | | ?????????????## Y ##???????? | | ?????????????## ###########+##+#######???????? | | ?????????????####+?########### ###???????? | | ?????????????# ???????## """"##????????? | | ?????????????????????????##"""[ """"##????????? | | ?????????????????????????##"G """"##????????? | | ?????????????????????????##"""! """"##????????? | | ?????????????????????????### ##????????? | | ?????????????????????????### # ##????????? | | ?????????????????????????##### ##????????? | | ??????????????????????????###############????????? | | ????????????????????????????#############????????? | | ?????????????????????????????????????????????????? | | | | | | | | | | | | | | | | | | | | | | | +----------------------------------------------------+ Best States ------------- Heat Dissipation 28 Energy Generation 10 Energy Capacity 250 Matter Stores 300 Matter Capacity 300 Sight Range 18 Terrain Scan Density 10 Evasion (%) 40 Recoil Reduction 2 Item Schematics ----------------- None Robot Schematics ------------------ None Fabricated ------------ Nothing Alien Tech Used ----------------- None Achievements -------------- None Challenges ------------ None Game ------ Seed MediumPointyBiocell Manual? 0 Play Time 00:26:21 Cumulative 37.5 hours Start 2024.06.25 @ 17:01:26 End 2024.06.26 @ 21:20:01 Sessions 5 Manual Loads 0 Difficulty Rogue Special Mode None Game No. 30 Rogue 29 Adventurer 1 Explorer 0 Win Type - Total 0 Types 0/0/0/0/0/0/0/0/0 Lore% 21 Gallery% 22 Achievement% 24 Wizard Run 0 Options --------- Layout 1 ASCII 0 Keyboard 0 Movement Mouse Keybinds 0 Fullscreen 1 Font 20/SmallcapsGlow Map View 50x35 Zoom Use 0% Tactical HUD 1 Map Filters NONE Filters NONE Steam 1 RUN: fd1fbe99-f150-4e14-a3e2-2b0ab4997e2f